bitfinex/quotes_ETHUSD_20240822
["timestamp","ask_amount","ask_price","bid_price","bid_amount"]
[1724293909442,2.2859,2624.8,2624.1,2.28641]
[1724293909591,0.45643,2624.7,2624.2,2.28635]
[1724293910243,0.45643,2624.7,2624.2,2.28639]
[1724293910499,2.28622,2624.5,2623.9,9.70045]
[1724293910649,2.28626,2624.4,2623.8,2.28672]
[1724293910862,4.75929,2624.3,2623.6,2.28692]
[1724293911352,2.28648,2624.2,2623.5,11.99811]
[1724293911953,2.28648,2624.2,2623.5,9.70081]
[1724293912304,2.2865,2624.1,2623.5,9.70081]
[1724293912502,2.991079,2624.1,2623.5,7.4138]
[1724293912721,2.991079,2624.1,2623.5,9.70081]
[1724293912956,0.704579,2624.1,2623.6,2.28692]
[1724293914023,0.704579,2624.1,2623.5,7.4138]
[1724293915330,2.28644,2624.2,2623.6,2.28693]
[1724293916814,4.75929,2624.3,2623.6,2.28693]
[1724293917015,2.28641,2624.2,2623.6,2.28693]
[1724293918935,2.68079839,2624.3,2623.7,2.2755]
[1724293919124,3.17749623,2624.3,2623.7,2.2755]
[1724293919349,5.46389623,2624.3,2623.7,2.2755]
[1724293919757,2.28641,2624.2,2623.7,2.2755]
[1724293920270,2.28652,2624.1,2623.5,7.4138]
[1724293920478,0.228652,2624.0,2623.5,7.4138]
[1724293921448,0.228652,2624.0,2623.4,2.28704]
[1724293921875,2.515292,2624.0,2623.4,2.28704]
[1724293922060,2.28672,2623.9,2623.3,2.2755]
[1724293922263,0.7088532,2623.9,2623.5,2.28695]
[1724293922446,2.28652,2624.1,2623.5,2.28695]
[1724293922648,2.28652,2624.1,2623.6,2.28691]
[1724293923062,3.17745623,2624.3,2623.7,2.28678]
[1724293923283,0.39440839,2624.3,2623.7,2.28678]
[1724293923439,0.39440839,2624.3,2623.8,2.28674]
[1724293923781,0.39440839,2624.3,2623.8,4.57334]
[1724293924350,0.39440839,2624.3,2623.9,2.28666]
[1724293924583,2.28612,2624.6,2624.0,2.28653]
[1724293924738,2.989634,2624.6,2624.0,2.28653]
[1724293925781,2.28581,2624.9,2624.2,2.28635]
[1724293926067,2.28566,2625.1,2624.4,2.489]
[1724293926266,2.28566,2625.1,2624.6,2.28605]
[1724293926517,2.28562,2625.2,2624.6,2.286]
[1724293926682,2.28562,2625.2,2624.4,8.3042]
[1724293926683,2.28581,2624.9,2624.4,2.489]
[1724293926863,2.2857,2625.1,2624.2,2.28634]
[1724293927068,2.2857,2625.1,2624.2,5.28634]
[1724293927316,2.28582,2624.9,2624.3,2.28628]
[1724293927885,2.28582,2624.9,2624.2,5.28634]
[1724293928130,4.56062,2624.9,2624.1,4.66107]
[1724293928311,2.28604,2624.7,2624.0,2.28657]
[1724293928473,2.28604,2624.7,2624.0,2.28652]
[1724293928808,2.28604,2624.7,2624.1,2.28649]
[1724293929378,2.28604,2624.7,2624.0,2.28652]
[1724293929379,6.8465,2624.9,2624.2,2.2864]
[1724293929580,0.456064,2624.8,2624.2,4.57275]
[1724293929827,0.456064,2624.8,2624.2,2.28635]
[1724293930179,0.456064,2624.8,2624.2,4.5727]
[1724293930380,2.28584,2624.9,2624.3,2.4014]
[1724293930833,2.28566,2625.1,2624.4,2.28616]
[1724293931037,2.2539,2625.2,2624.5,2.28606]
[1724293931327,2.28549,2625.3,2624.5,2.28606]
[1724293931541,0.26803065,2625.2,2624.5,2.28606]
[1724293931705,2.55362065,2625.2,2624.6,2.28601]
[1724293932238,0.26803065,2625.2,2624.6,2.28601]
[1724293932406,0.26803065,2625.2,2624.5,2.28606]
[1724293932734,0.26803065,2625.2,2624.3,4.68768]
[1724293932735,2.28576,2625.0,2624.3,6.97395]
[1724293932893,2.28567,2625.1,2624.3,4.68767]
[1724293933117,2.76958807,2625.1,2624.3,5.156437]
[1724293933320,2.55360065,2625.2,2624.6,2.28598]
[1724293934217,2.28548,2625.3,2624.8,2.28588]
[1724293934428,2.28542,2625.4,2624.7,2.28597]
[1724293934616,2.28542,2625.4,2624.8,2.28581]
[1724293934840,2.28542,2625.4,2624.8,4.70741]
[1724293935430,2.28542,2625.4,2624.9,2.28579]
[1724293936132,0.35641794,2625.3,2624.9,2.28579]
[1724293936472,2.28542,2625.4,2624.9,2.28579]
[1724293936633,2.64191419,2625.3,2624.8,2.4216]
[1724293936839,4.56872,2625.4,2624.7,2.28589]
[1724293937036,0.35640824,2625.3,2624.7,2.28589]
[1724293937284,0.35640962,2625.2,2624.8,4.68272]
[1724293937422,2.68017647,2625.6,2625.0,2.28566]
[1724293937777,2.28523,2625.6,2625.0,2.36183473]
[1724293938337,4.57013,2625.8,2625.1,2.28556]
[1724293938551,0.35635694,2625.7,2625.1,2.28556]
[1724293938874,0.35635694,2625.6,2625.1,2.742681]
[1724293939190,0.35635694,2625.5,2625.1,2.742681]
[1724293939390,0.35635694,2625.4,2625.1,2.742681]
[1724293939521,2.28511,2625.7,2625.1,2.742681]
[1724293939721,0.35640788,2625.6,2625.1,2.742681]
[1724293939969,0.35640788,2625.5,2625.2,2.28553]
[1724293940121,2.28503,2625.8,2625.2,2.28553]
[1724293940122,2.94020894,2625.8,2625.2,2.28553]
[1724293940318,2.64146857,2625.7,2625.2,2.28553]
[1724293940553,2.28546,2625.3,2624.8,4.68275]
[1724293940823,2.28543,2625.4,2624.8,4.68275]
[1724293941144,0.35636454,2625.3,2624.8,5.379627]
[1724293941338,2.28542,2625.4,2624.8,5.379627]
[1724293941339,0.35636454,2625.2,2624.8,5.379627]
[1724293941543,2.28542,2625.4,2624.8,5.379627]
[1724293941754,0.35635615,2625.3,2624.8,5.379627]
[1724293941958,0.35635615,2625.2,2624.9,0.5379627]
[1724293942178,2.28524,2625.6,2625.0,2.28563]
[1724293942475,0.35636696,2625.5,2625.0,2.28563]
[1724293942629,0.35636696,2625.4,2625.0,2.28563]
[1724293942828,0.35636696,2625.3,2625.0,5.32191327]
[1724293943028,2.28527,2625.5,2624.8,4.68277]
[1724293943372,2.28555,2625.2,2624.6,2.28601]
[1724293943556,0.35638248,2625.1,2624.6,2.28601]
[1724293943729,2.28555,2625.2,2624.6,4.57202]
[1724293944074,0.35634438,2625.1,2624.7,3.043162]
[1724293944237,0.35634438,2625.0,2624.7,3.043162]
[1724293944444,2.28542,2625.4,2624.8,2.28588]
[1724293944687,2.28551,2625.3,2624.7,0.757202]
[1724293944847,2.28551,2625.3,2624.7,3.043122]
[1724293944848,0.3563595,2625.2,2624.7,3.043122]
[1724293945048,0.3563595,2625.1,2624.7,3.043122]
[1724293945382,4.57084,2625.4,2624.8,2.8187902]
[1724293945597,0.35634947,2625.3,2625.0,2.28564]
[1724293945743,0.35634947,2625.2,2625.1,2.28562]
[1724293945944,1.98439399,2625.6,2625.2,2.28553]
[1724293946174,4.66632279,2625.8,2625.2,2.742647]
[1724293946175,0.35636683,2625.5,2625.2,2.742647]
[1724293946377,0.35636683,2625.4,2625.2,2.28553]
[1724293946529,0.35636683,2625.3,2625.2,2.28553]
[1724293946728,1.98439399,2625.7,2625.2,2.742647]
[1724293947023,0.3564107,2625.6,2625.2,2.742647]
[1724293947275,0.3564107,2625.5,2625.2,2.28553]
[1724293947572,0.3564107,2625.4,2625.1,2.28557]
[1724293947878,4.26949399,2625.7,2625.1,2.28557]
[1724293948040,0.35639114,2625.6,2625.1,2.28557]
[1724293948278,0.35639114,2625.5,2625.1,2.97662]
[1724293948606,0.35639114,2625.4,2625.1,2.97662]
[1724293948810,2.28519,2625.6,2625.0,2.28563]
[1724293949009,0.35643191,2625.5,2625.0,2.28563]
[1724293949210,0.35643191,2625.4,2625.0,4.57128]
[1724293949363,1.98454004,2625.7,2625.1,2.976678]
[1724293949570,0.35644063,2625.6,2625.1,2.976678]
[1724293949772,0.35644063,2625.5,2625.1,2.976678]
[1724293949971,0.35644063,2625.4,2625.1,2.976678]
[1724293950174,2.2851,2625.7,2625.1,2.976678]
[1724293950500,2.6416358,2625.6,2625.1,0.691058]
[1724293950699,0.3564458,2625.5,2625.0,2.28563]
[1724293950903,4.57045,2625.6,2625.0,2.28563]
[1724293950904,0.3564458,2625.4,2625.0,2.28563]
[1724293951092,2.28519,2625.6,2625.0,2.28563]
[1724293951299,0.35641991,2625.5,2625.0,2.28563]
[1724293951508,0.35641991,2625.5,2625.0,3.52397546]
[1724293951713,0.35641991,2625.4,2625.0,3.52397546]
[1724293951880,0.35641991,2625.5,2625.0,5.80963546]
[1724293952080,0.35642845,2625.4,2625.0,5.80962546]
[1724293952297,2.28519,2625.6,2625.0,3.52397546]
[1724293952506,0.35643336,2625.5,2625.1,0.58632755]
[1724293952711,0.35643336,2625.4,2625.1,0.58632755]
[1724293952881,2.28519,2625.6,2625.1,0.58632755]
[1724293953211,0.35643284,2625.5,2625.1,0.58632755]
[1724293953422,0.35643284,2625.4,2625.1,0.58632755]
[1724293953641,2.28519,2625.6,2625.2,0.4110303]
[1724293953826,0.35643178,2625.5,2625.1,2.87193755]
[1724293954026,2.28519,2625.6,2625.1,2.87193755]
[1724293954235,0.35643204,2625.5,2625.1,2.87193755]
[1724293954519,2.28519,2625.6,2625.1,2.87193755]
[1724293954737,0.35640738,2625.5,2625.1,2.87193755]
[1724293954910,2.28519,2625.6,2625.1,2.87193755]
[1724293955113,0.35640072,2625.5,2625.2,2.80128675]
[1724293955436,2.68362763,2625.8,2625.2,2.80128675]
[1724293955612,0.35641977,2625.7,2625.2,2.80128675]
[1724293955841,0.35641977,2625.6,2625.2,2.80128675]
[1724293956044,0.35641977,2625.5,2625.1,0.58632755]
[1724293956252,2.28519,2625.6,2625.1,0.58632755]
[1724293956455,0.35632716,2625.5,2625.1,0.58632755]
[1724293956640,2.28519,2625.6,2625.1,0.58632755]
[1724293956828,2.28519,2625.6,2625.1,2.87194755]
[1724293956829,0.35634084,2625.5,2625.1,2.87194755]
[1724293957059,2.28519,2625.6,2625.1,2.87194755]
[1724293957241,0.35634209,2625.5,2625.1,2.87194755]
[1724293957446,2.28519,2625.6,2625.1,2.87194755]
[1724293957641,0.35634445,2625.5,2625.1,2.28562]
[1724293957851,2.28519,2625.6,2625.1,2.28562]
[1724293958179,0.35625568,2625.5,2625.1,2.28562]
[1724293958333,2.28519,2625.6,2625.1,2.28562]
[1724293958536,0.3562635,2625.5,2625.1,2.28562]
[1724293958748,2.38090908,2625.8,2625.1,0.691071]
[1724293958961,0.35625617,2625.7,2625.3,2.28538]
[1724293959179,2.28489,2626.0,2625.3,2.28538]
[1724293959383,2.28502,2625.8,2625.2,2.3938]
[1724293959605,0.35632123,2625.7,2625.1,9.69937]
[1724293959915,2.61531831,2626.0,2625.1,9.69937]
[1724293959916,0.35632123,2625.6,2625.1,9.69937]
[1724293960065,2.28502,2625.8,2625.3,2.28542]
[1724293960270,0.35626381,2625.7,2625.3,2.28542]
[1724293960488,2.28494,2625.9,2625.3,6.98672]
[1724293960764,0.35626748,2625.8,2625.3,6.98669]
[1724293960972,4.27133145,2626.1,2625.6,2.28519]
[1724293960973,4.26713145,2626.1,2625.6,2.28519]
[1724293961171,0.3562755,2626.0,2625.6,2.28519]
[1724293961463,0.3562755,2625.9,2625.6,2.28519]
[1724293961797,2.2848,2626.1,2625.6,2.742229]
[1724293961991,0.35627922,2626.0,2625.6,2.742229]
[1724293962175,0.35627922,2625.9,2625.6,2.742229]
[1724293962377,4.26701145,2626.2,2625.6,2.742229]
[1724293962706,4.26701145,2626.2,2625.8,4.5399]
[1724293962707,0.35629787,2626.1,2625.8,4.5399]
[1724293962915,2.28459,2626.3,2625.8,2.2549]
[1724293963110,0.35633838,2626.2,2625.8,2.2549]
[1724293963412,0.35633838,2626.1,2625.8,2.2549]
[1724293963582,0.35633838,2626.0,2625.7,2.28504]
[1724293963781,0.35633838,2625.9,2625.7,2.28504]
[1724293963983,4.56939,2626.2,2625.7,2.28504]
[1724293964185,0.35630671,2626.1,2625.7,2.28504]
[1724293964497,0.35630671,2626.0,2625.5,4.6616]
[1724293964702,2.28467,2626.2,2625.6,1.207542]
[1724293964885,0.35630497,2626.1,2625.6,1.207542]
[1724293965064,0.35630497,2626.0,2625.6,1.207542]
[1724293965267,2.28467,2626.2,2625.6,1.207542]
[1724293965463,0.35631245,2626.1,2625.6,1.207542]
[1724293965712,0.35631245,2626.0,2625.6,1.207542]
[1724293965914,2.28467,2626.2,2625.7,2.8719942]
[1724293966066,0.35630656,2626.1,2625.7,2.28508]
[1724293966269,0.35630656,2626.1,2625.6,1.207542]
[1724293966270,0.35630656,2626.0,2625.5,4.6616]
[1724293966576,0.35630656,2625.9,2625.5,2.2852]
[1724293966911,0.35630656,2625.9,2625.5,3.720685]
[1724293967299,2.28506,2625.8,2625.4,7.4138]
[1724293967499,2.28501,2625.9,2625.4,7.4138]
[1724293967684,0.35629637,2625.8,2625.4,7.4138]
[1724293967886,0.35629637,2625.8,2625.4,10.897619]
[1724293969480,0.35629637,2625.8,2624.9,2.28573]
[1724293969481,2.28521,2625.6,2624.9,2.28573]
[1724293969795,0.35629637,2625.5,2624.9,4.57148]
[1724293970005,0.35629637,2625.4,2624.9,4.57148]
[1724293970176,0.35629637,2625.3,2625.0,3.726108]
[1724293970519,4.26763145,2625.5,2625.0,1.440408]
[1724293970671,0.35625877,2625.4,2624.9,4.57146]
[1724293970884,0.35625877,2625.3,2624.9,2.28573]
[1724293971088,0.35625877,2625.2,2624.9,2.28573]
[1724293971334,4.26763145,2625.5,2624.9,2.28573]
[1724293971335,1.98233145,2625.5,2624.9,2.28573]
[1724293971537,0.3562618,2625.4,2625.0,1.211833]
[1724293971740,0.3562618,2625.3,2625.0,1.211833]
[1724293971947,0.3562618,2625.2,2624.8,9.8326]
[1724293972145,4.26761145,2625.5,2624.8,9.8326]
[1724293972146,0.3562618,2625.1,2624.8,7.4138]
[1724293972313,0.3562618,2625.0,2624.8,7.4138]
[1724293972517,6.57371145,2625.3,2624.8,7.4138]
[1724293972518,0.3562618,2624.9,2624.8,7.4138]
[1724293972839,0.3562618,2624.9,2624.8,8.383771]
[1724293973618,4.27234798,2625.3,2624.8,10.669651]
[1724293973818,4.27234798,2625.3,2624.8,7.4138]
[1724293974115,0.35621521,2625.2,2624.8,7.4138]
[1724293974313,0.35621521,2625.1,2624.8,7.4138]
[1724293974522,0.35621521,2625.0,2624.8,7.4138]
[1724293974725,0.35621521,2624.9,2624.8,7.4138]
[1724293974921,0.35621521,2624.9,2624.5,2.2861]
[1724293975133,4.38866798,2625.2,2624.5,2.2861]
[1724293975304,4.62884751,2625.1,2624.6,2.28605]
[1724293975520,0.35629953,2625.0,2624.5,2.2861]
[1724293975751,0.35629953,2624.9,2624.5,6.000628]
[1724293975973,0.35629953,2624.8,2624.5,6.000628]
[1724293976107,6.67426798,2625.2,2624.6,2.28605]
[1724293976313,0.3563109,2625.1,2624.6,2.28605]
[1724293976514,0.3563109,2625.0,2624.6,2.28605]
[1724293976715,0.3563109,2624.9,2624.6,2.28605]
[1724293977064,0.35629123,2624.8,2624.6,2.28605]
[1724293977233,4.27419014,2625.1,2624.5,2.28609]
[1724293977413,2.3448598,2625.0,2624.5,2.28609]
[1724293977606,0.35628966,2624.9,2624.5,4.57218]
[1724293977935,0.35628966,2624.8,2624.5,4.57218]
[1724293978114,0.35628966,2624.7,2624.5,4.57218]
[1724293978314,1.98857014,2625.0,2624.6,2.28606]
[1724293978514,0.35628041,2624.9,2624.6,2.28606]
[1724293978746,0.35628041,2624.8,2624.6,2.28606]
[1724293978940,0.35628041,2624.7,2624.6,2.28606]
[1724293979142,0.35628041,2624.7,2624.6,3.1159368]
[1724293979512,0.35628041,2624.9,2624.6,3.1159368]
[1724293979719,0.35628041,2624.8,2624.6,3.1159368]
[1724293980045,1.98857014,2625.0,2624.6,3.1159368]
[1724293980443,0.35623774,2624.9,2624.6,3.1159368]
[1724293980616,0.35627708,2624.7,2624.6,3.1159368]
[1724293981124,0.71251482,2624.7,2624.6,3.1159368]
[1724293982232,0.71251482,2624.7,2624.6,2.28606]
[1724293982442,0.71251388,2624.7,2624.6,2.28606]
[1724293983768,0.3562368,2624.7,2624.6,2.28606]
[1724293985692,0.3562368,2624.7,2624.4,6.87059]
[1724293985977,0.3562368,2624.6,2624.5,2.28614]
[1724293986143,1.9882545,2625.0,2624.5,2.28614]
[1724293986472,0.35625681,2624.9,2624.5,2.28614]
[1724293986683,2.28572,2625.0,2624.5,2.28614]
[1724293986684,0.35625681,2624.8,2624.5,2.28614]
[1724293986864,0.35625681,2624.7,2624.4,2.28616]
[1724293987183,4.2739745,2625.0,2624.4,2.28616]
[1724293987184,0.35625681,2624.6,2624.4,2.28616]
[1724293987471,6.7620745,2625.0,2624.4,3.556156]
[1724293987676,0.35617828,2624.9,2624.4,3.556156]
[1724293987840,0.35617828,2624.8,2624.5,2.28614]
[1724293988029,0.35617828,2624.7,2624.5,2.28614]
[1724293988229,0.35617828,2624.6,2624.5,2.28614]
[1724293988478,0.35617828,2624.6,2624.5,1.19861]
[1724293988778,0.35617828,2624.6,2624.4,4.57234]
[1724293988988,6.7621145,2625.0,2624.4,2.28616]
[1724293989275,0.35617409,2624.9,2624.4,2.28616]
[1724293989577,0.35617409,2624.8,2624.4,4.57234]
[1724293989782,0.35617409,2624.7,2624.4,2.28616]
[1724293989988,6.7610063,2625.0,2624.4,2.28616]
[1724293990158,0.35617574,2624.9,2624.4,4.57234]
[1724293990355,0.35617574,2624.8,2624.4,4.57233]
[1724293990556,0.35617574,2624.7,2624.4,2.28616]
[1724293990893,2.28589,2624.8,2624.3,7.4138]
[1724293991070,0.35614154,2624.7,2624.3,7.4138]
[1724293991647,2.64211154,2624.7,2624.3,7.4138]
[1724293991847,0.35614154,2624.6,2624.3,7.4138]
[1724293992243,2.28597,2624.7,2624.3,7.4138]
[1724293992448,0.35614103,2624.5,2624.3,7.4138]
[1724293992668,2.28597,2624.7,2624.3,7.4138]
[1724293992872,0.3561448,2624.6,2624.1,2.28646]
[1724293993075,0.3561448,2624.5,2624.1,2.28646]
[1724293993276,5.31836799,2624.7,2624.1,2.28646]
[1724293993277,0.3561448,2624.4,2624.1,2.28646]
[1724293993504,3.03233799,2624.7,2624.1,2.28646]
[1724293993706,0.35614914,2624.6,2624.1,2.28646]
[1724293993881,0.35614914,2624.5,2624.0,2.28658]
[1724293994067,0.35614914,2624.4,2624.0,2.28658]
[1724293994258,0.35614914,2624.3,2624.0,2.28658]
[1724293994446,1.9871763,2624.6,2624.0,2.28658]
[1724293994646,0.35612042,2624.5,2624.0,2.28658]
[1724293994895,0.35612042,2624.4,2624.0,2.28658]
[1724293995059,0.35612042,2624.3,2624.0,3.717094]
[1724293995265,4.2718185,2624.7,2624.1,2.28647]
[1724293995597,0.3562545,2624.6,2624.2,4.75483]
[1724293995742,2.28587,2624.9,2624.2,5.6020184]
[1724293995949,2.286,2624.7,2624.2,5.6020184]
[1724293996163,0.35628751,2624.6,2624.2,5.6020184]
[1724293996389,0.35628751,2624.5,2624.2,5.6020184]
[1724293996589,2.286,2624.7,2624.2,5.6020184]
[1724293996792,0.35631009,2624.6,2624.2,5.6020184]
[1724293996994,0.35631009,2624.5,2624.2,5.6020184]
[1724293997230,2.286,2624.7,2624.2,5.6020184]
[1724293997435,0.35629871,2624.6,2624.2,5.6020184]
[1724293997727,0.35629871,2624.5,2624.2,5.6020184]
[1724293997933,2.286,2624.7,2624.2,5.6020184]
[1724293998112,0.35626592,2624.6,2624.2,5.6020184]
[1724293998311,0.35626592,2624.5,2624.2,5.6020184]
[1724293998514,2.286,2624.7,2624.2,5.6020184]
[1724293998700,0.35625324,2624.6,2624.2,5.6020184]
[1724293998901,0.35625324,2624.5,2624.2,5.6020184]
[1724293999103,2.286,2624.7,2624.2,5.6020184]
[1724293999322,0.35624594,2624.6,2624.2,3.3156884]
[1724293999515,0.35624594,2624.5,2624.2,0.8471884]
[1724293999717,2.28633,2624.3,2623.8,9.70051]
[1724293999905,2.28633,2624.3,2623.6,2.28685]
[1724294000116,0.3561721,2624.2,2623.7,2.28679]
[1724294000289,2.28633,2624.3,2623.7,2.28679]
[1724294000485,0.35614605,2624.2,2623.7,2.28679]
[1724294000839,2.3485,2624.4,2623.9,2.28666]
[1724294000989,0.35613535,2624.3,2623.7,4.57357]
[1724294001196,2.28633,2624.3,2623.8,0.457357]
[1724294001422,2.3485,2624.4,2623.8,2.744087]
[1724294001626,0.35615088,2624.3,2623.8,2.744087]
[1724294001937,4.63474,2624.4,2623.8,2.744087]
[1724294002133,0.35615411,2624.3,2623.8,2.744087]
[1724294002323,4.63474,2624.4,2623.8,2.744087]
[1724294002632,2.64246497,2624.3,2623.9,0.5030867]
[1724294002932,2.28633,2624.3,2623.8,2.28673]
[1724294003139,2.28633,2624.3,2623.7,2.28678]
[1724294003140,2.28641,2624.2,2623.7,2.28678]
[1724294003305,2.28652,2624.1,2623.5,19.92396125]
[1724294003628,2.28652,2624.1,2623.5,11.96825]
[1724294003993,2.28652,2624.1,2623.5,14.25522]
[1724294005210,2.28652,2624.1,2623.6,2.2869]
[1724294006532,2.28646,2624.2,2623.6,2.28691]
[1724294006831,2.28646,2624.2,2623.7,2.28684]
[1724294007036,2.28646,2624.2,2623.8,0.228684]
[1724294007394,2.28636,2624.3,2623.8,0.228684]
[1724294008839,2.28636,2624.3,2623.8,2.515424]
[1724294009131,2.28636,2624.3,2623.8,0.228684]
[1724294009444,2.28636,2624.3,2623.7,2.28679]
[1724294009793,2.28641,2624.2,2623.7,2.28679]
[1724294010143,2.28625,2624.4,2623.9,2.28665]
[1724294010343,0.35593456,2624.3,2623.9,2.28665]
[1724294010542,2.28625,2624.4,2623.9,2.28665]
[1724294010841,0.35593437,2624.3,2623.9,2.990794]
[1724294011144,2.2862,2624.5,2623.9,2.990794]
[1724294011312,0.3559378,2624.4,2623.9,2.990794]
[1724294011513,2.380009,2624.6,2623.9,0.704144]
[1724294011514,0.3559378,2624.3,2623.9,0.704144]
[1724294011715,0.3559378,2624.2,2623.8,2.468]
[1724294011893,2.28637,2624.3,2623.8,2.468]
[1724294012335,0.35597711,2624.2,2623.8,4.75474]
[1724294012539,6.5537347,2624.5,2623.9,2.28665]
[1724294012755,2.6422649,2624.4,2623.9,2.28665]
[1724294012911,0.3560049,2624.3,2623.9,2.28665]
[1724294013100,0.3560049,2624.3,2623.9,3.0612093]
[1724294013500,2.6423349,2624.3,2623.9,0.7745593]
[1724294013799,0.3560049,2624.2,2623.9,0.7745593]
[1724294015037,2.28633,2624.3,2623.9,0.7745593]
[1724294015207,4.5727,2624.3,2623.8,2.468]
[1724294015410,2.28641,2624.2,2623.8,2.468]
[1724294015744,0.35603209,2624.2,2623.8,2.468]
[1724294016050,0.35603209,2624.1,2623.8,2.468]
[1724294016260,0.35603209,2624.2,2623.8,2.468]
[1724294016415,0.35601685,2624.1,2623.8,2.468]
[1724294016609,2.28633,2624.3,2623.8,2.468]
[1724294016915,0.35599003,2624.2,2623.8,2.943479]
[1724294017142,0.35599003,2624.1,2623.8,2.943479]
[1724294017349,0.35599003,2624.0,2623.8,2.468]
[1724294017533,2.28633,2624.3,2623.8,2.468]
[1724294017733,0.35595695,2624.2,2623.8,2.468]
[1724294018057,14.24622833,2625.1,2623.8,2.468]
[1724294018058,1.98411388,2624.8,2624.3,2.3093]
[1724294018216,2.77775943,2625.3,2624.7,2.3093]
[1724294018217,1.98411388,2625.2,2624.7,2.3093]
[1724294018419,2.2855,2625.3,2624.7,2.3093]
[1724294018420,0.35605799,2625.1,2624.7,2.3093]
[1724294018771,0.35605799,2625.0,2624.7,4.59527]
[1724294018917,0.35605799,2624.9,2624.7,4.59527]
[1724294019258,2.2855,2625.3,2624.8,2.28588]
[1724294019427,0.35610119,2625.2,2624.8,2.28588]
[1724294019629,0.35610119,2625.1,2624.8,2.28588]
[1724294019834,0.35610119,2625.0,2624.8,2.28588]
[1724294020053,2.2855,2625.3,2624.8,2.28588]
[1724294020234,0.35609538,2625.2,2624.8,2.28588]
[1724294020444,0.35609538,2625.1,2624.8,2.28588]
[1724294020620,0.35609538,2625.0,2624.9,2.28579]
[1724294021116,0.35609538,2625.0,2624.7,2.3093]
[1724294021320,8.86337388,2625.3,2624.7,2.28596]
[1724294021570,0.228553,2625.2,2624.7,2.28596]
[1724294021771,0.58459847,2625.2,2624.7,2.28596]
[1724294022064,0.35604547,2625.1,2624.7,2.28596]
[1724294022261,0.35604547,2625.0,2624.7,2.28596]
[1724294022561,0.35604547,2624.9,2624.7,2.28596]
[1724294022749,0.228553,2625.2,2624.7,2.28596]
[1724294022956,0.35599354,2625.1,2624.5,2.3452]
[1724294023148,2.64175354,2625.0,2624.4,2.28623]
[1724294023480,0.35599354,2624.9,2624.4,4.57241]
[1724294023655,0.35599354,2624.8,2624.5,2.28613]
[1724294023837,0.35599354,2624.7,2624.5,2.28613]
[1724294024041,2.28576,2625.0,2624.5,2.28613]
[1724294024267,0.35596363,2624.9,2624.5,2.28613]
[1724294024440,0.35596363,2624.8,2624.5,2.28613]
[1724294024643,0.35596363,2624.7,2624.5,2.28613]
[1724294024844,2.28576,2625.0,2624.5,2.28613]
[1724294025028,0.35596427,2624.9,2624.5,2.28613]
[1724294025231,0.35596427,2624.8,2624.5,2.28613]
[1724294025533,0.35596427,2624.8,2624.3,3.0]
[1724294025534,2.28576,2625.0,2624.3,2.28631]
[1724294025868,2.28576,2625.0,2624.2,2.28635]
[1724294025869,2.28589,2624.8,2624.2,2.28635]
[1724294026069,0.35596192,2624.7,2624.2,2.28635]
[1724294026270,0.35596192,2624.6,2624.2,4.57269]
[1724294026425,0.35596192,2624.5,2624.2,4.57269]
[1724294026627,4.27115828,2624.8,2624.3,2.28631]
[1724294026970,0.35591229,2624.7,2624.3,2.28631]
[1724294027140,0.35591229,2624.6,2624.2,2.28634]
[1724294027538,5.21351725,2624.8,2624.2,2.28634]
[1724294027539,0.35591229,2624.5,2624.2,2.28634]
[1724294027729,0.35591229,2624.4,2624.2,4.5727]
[1724294027925,7.49925081,2624.8,2624.2,2.28634]
[1724294028138,1.03659222,2624.7,2624.2,2.28634]
[1724294028344,1.39249905,2624.7,2624.0,2.28651]
[1724294028528,1.39249905,2624.7,2623.8,2.2867]
[1724294028529,2.2862,2624.5,2623.8,2.28668]
[1724294028728,2.2862,2624.5,2623.6,9.6751]
[1724294028729,2.28633,2624.3,2623.6,11.96198]
[1724294028924,4.57272,2624.3,2623.7,2.2868]
[1724294029231,2.64231683,2624.2,2623.7,2.2868]
[1724294029432,0.35590683,2624.1,2623.7,2.2868]
[1724294029626,0.35590683,2624.0,2623.7,2.2868]
[1724294029824,2.28641,2624.2,2623.7,2.2868]
[1724294030143,0.35580558,2624.1,2623.7,2.2868]
[1724294030330,0.35580558,2624.0,2623.7,2.2868]
[1724294030527,2.28653,2624.1,2623.6,7.4138]
[1724294030727,0.35581008,2624.0,2623.6,7.41252039]
[1724294030951,0.35581008,2623.9,2623.6,7.41252039]
[1724294031153,0.35581008,2623.8,2623.6,7.41252039]
[1724294031354,2.28659,2624.0,2623.6,7.41252039]
[1724294031567,3.2455142,2624.0,2623.6,7.41252039]
[1724294031771,0.35582435,2623.9,2623.6,7.41252039]
[1724294031963,2.64263435,2623.8,2623.6,7.41252039]
[1724294032274,2.64266435,2623.7,2623.6,7.41252039]
[1724294032473,2.64266435,2623.7,2623.2,2.28726]
[1724294032628,0.35582435,2623.6,2623.2,4.57452]
[1724294032834,0.35582435,2623.5,2623.2,2.28723]
[1724294033066,2.28675,2623.9,2623.2,2.28723]
[1724294033373,0.35582423,2623.8,2623.3,2.28713]
[1724294033543,0.35582423,2623.7,2623.6,2.28693]
[1724294034181,0.35582423,2624.0,2623.6,2.28693]
[1724294034360,0.3558734,2623.9,2623.6,2.28693]
[1724294034542,2.38320172,2624.2,2623.6,2.28687]
[1724294034543,0.3558734,2623.8,2623.6,2.28687]
[1724294034768,3.08769489,2624.2,2623.6,2.28687]
[1724294034968,0.35586256,2624.1,2623.6,2.28687]
[1724294035281,3.08769489,2624.2,2623.6,2.28687]
[1724294035282,0.35586256,2624.0,2623.6,2.28687]
[1724294035601,0.35586256,2623.9,2623.6,2.28687]
[1724294035768,5.37415489,2624.2,2623.6,2.28687]
[1724294035769,0.35586256,2623.8,2623.6,2.28687]
[1724294035979,2.28649,2624.1,2623.6,2.28687]
[1724294036182,0.35585301,2624.0,2623.6,2.28687]
[1724294036500,0.35585301,2623.9,2623.7,2.28683]
[1724294036702,0.35585301,2623.8,2623.6,2.982704]
[1724294036902,2.68508211,2624.2,2623.6,2.982704]
[1724294037207,0.35588115,2624.1,2623.6,2.982704]
[1724294037357,0.35588115,2624.0,2623.6,2.28687]